Cogmind - Beta 13 @@@ ROGUE MODE // 2024.03.04 @ 23:56:14 Player: Zon Result: Core destroyed Performance ------------- Evolutions (5) 2500 Regions Visited (8) 1600 Robots Destroyed (57) 285 Value Destroyed (1585) 1585 Prototype IDs (6) 120 Alien Tech Used (0) 0 Bonus (499) 499 TOTAL SCORE: 6589 Bonus ------- Follower Combat Kills 35 Entered DSFs 500 Friendly Fire -36 Cogmind --------- Core Integrity 0/1000 Matter 254/300 Energy 100/100 System Corruption 0% Temperature Cool (0) Movement Core (50) Location -5/Factory Parts ------- > --- POWER (2) -------- (None) > --- PROPULSION (4) --- (None) > --- UTILITY (6) ------ (None) > --- WEAPON (5) ------- (None) > --- INVENTORY (5) ---- (None) Peak State ------------ > --- POWER ------------ Light Angular Momentum Engine > --- PROPULSION ------- Airjet Airjet Airjet > --- UTILITY ---------- Weight Redist. System Weapon Cycler Improved Utility Shielding Hacking Suite > --- WEAPON ----------- Field Laser Heavy Laser Minigun Minigun Flak Gun > --- INVENTORY -------- Carbon-fiber Leg Airjet Airjet System Shield [Rating: 44] Favorites ----------- Power Ion Engine Engine Ion Engine Propulsion Airjet Treads Light Treads Leg Carbon-fiber Leg Hover Unit Airjet Utility Hacking Suite Device Weight Redist. System Storage Compact Battery Processor Targeting Computer Hackware Hacking Suite Protection Improved Utility Shielding Weapon Light Assault Rifle Energy Gun Field Laser Ballistic Gun Light Assault Rifle Launcher Grenade Launcher Build | -11 -10 -9 -9 -8 -7 -7 -6 -5 ------- Run | Yrd Mat Mat Min Mat Fac DSF Fac Fac Slots Evolved 10 | . . 2 . 2 2 . 2 2 Power 1 | . . . . . 1 . . . Propulsion 2 | . . 1 . . . . . 1 Utility 4 | . . . . 1 1 . 1 1 Weapon 3 | . . 1 . 1 . . 1 . Parts Attached 75 | 6 11 6 8 6 4 7 23 4 Power 4 | 1 . . . . 1 . 2 . Engine 4 | 1 . . . . 1 . 2 . Core . | . . . . . . . . . Reactor . | . . . . . . . . . Propulsion 21 | 2 2 1 2 1 1 2 7 3 Treads 4 | 2 . . . . . . . 2 Leg 1 | . . . . . . . 1 . Wheel . | . . . . . . . . . Hover 16 | . 2 1 2 1 1 2 6 1 Flight . | . . . . . . . . . Utility 24 | 1 5 1 3 2 1 2 8 1 Device 9 | . . . 2 1 1 1 3 1 Storage 4 | 1 2 . . . . . 1 . Processor 4 | . 1 1 1 . . . 1 . Hackware 2 | . . . . 1 . . 1 . Protection 5 | . 2 . . . . 1 2 . Artifact . | . . . . . . . . . Weapon 26 | 2 4 4 3 3 1 3 6 . Energy Gun 7 | . . 1 . 1 1 . 4 . Energy Cannon . | . . . . . . . . . Ballistic Gun 14 | 2 2 1 2 2 . 3 2 . Ballistic Cannon . | . . . . . . . . . Launcher 5 | . 2 2 1 . . . . . Special Weapon . | . . . . . . . . . Impact Weapon . | . . . . . . . . . Slashing Weapon . | . . . . . . . . . Piercing Weapon . | . . . . . . . . . Special Melee Weapon . | . . . . . . . . . Unidentified Prototypes . | . . . . . . . . . Parts Lost 34 | . . 4 5 2 . 5 15 3 Power 4 | . . . . . . 1 3 . Propulsion 10 | . . 1 1 1 . 1 6 . Utility 9 | . . 1 2 1 . 1 1 3 Weapon 11 | . . 2 2 . . 2 5 . Highest Loss Streak 6 | . . 2 5 1 . 5 6 3 To Critical Strikes . | . . . . . . . . . Average Slot Usage (%) 71 | . 97 94 83 82 92 92 52 16 Engine 7 | . 14 11 11 9 15 9 1 . Treads 4 | . 24 . . . . . . . Hover 14 | . 2 32 21 12 15 22 13 2 Device 7 | . . . 15 20 23 20 5 6 Storage 3 | . 13 . . . . . 2 . Processor 2 | . . 11 3 . . . . . Hackware 3 | . . . . 4 7 7 8 . Protection 5 | . 12 7 . . . 1 6 3 Energy Gun 4 | . . 1 11 9 15 12 3 2 Ballistic Gun 13 | . 14 21 20 27 15 16 7 . Launcher 3 | . 13 8 . . . . . . Naked Turns 186 | . . . . . . . 139 47 Heaviest Build 29 | 13 21 13 12 14 22 22 29 6 Greatest Support 40 | 40 40 21 20 20 22 30 30 27 Greatest Overweight (x) 2 | . 2 . . 1 . . 1 . Average Overweight (x) . | . . . . . . . . . Largest Inventory Capacity 10 | 8 10 5 5 5 5 5 5 5 Average Capacity 5 | 7 9 5 5 5 5 5 5 5 Most Carried 10 | 7 10 5 5 5 4 5 5 . Average Carried 4 | 3 9 4 3 4 2 4 4 . Final Capacity 8 | 8 5 5 5 5 5 5 5 5 Final Carried 7 | 7 5 4 5 5 2 5 1 . Class Distribution -------------------- 38% | Mutant 31% | Gunner 17% | Hacker-Mutant 9% | Tank 3% | Scavenger-Gunner Dominant Class ---------------- Mutant | -10/Materials Gunner | -9/Materials Tank | -9/Mines Gunner | -8/Materials Gunner | -7/Factory Gunner | -7/DSF Hacker-Mutant | -6/Factory Mutant | -5/Factory Resources | -11 -10 -9 -9 -8 -7 -7 -6 -5 ----------- Run | Yrd Mat Mat Min Mat Fac DSF Fac Fac Matter Collected 1784 | 272 107 297 197 213 16 122 560 . Remotely 441 | . . . . 213 16 122 90 . Salvage Created 1761 | 83 248 165 94 366 16 94 695 . Parts 111 | 1 17 15 10 20 1 8 39 . Haulers Intercepted 2 | . 1 . . . . . 1 . Recyclers Shooed . | . . . . . . . . . Parts Field Recycled . | . . . . . . . . . Retrieved Matter . | . . . . . . . . . Parts Self-Destructed . | . . . . . . . . . Prevented . | . . . . . . . . . Kills | -11 -10 -9 -9 -8 -7 -7 -6 -5 ------- Run | Yrd Mat Mat Min Mat Fac DSF Fac Fac Combat Hostiles Destroyed 47 | . 6 10 13 6 . 2 10 . Guns 32 | . 2 5 9 5 . 2 9 . AOE 15 | . 4 5 4 1 . . 1 . Classes Destroyed 16 | 1 5 3 1 1 . 2 3 . Worker 4 | . 1 . . 1 1 . 1 . Builder 3 | . . . . . . . 3 . Tunneler 2 | . . 1 . . . . 1 . Hauler 2 | . 1 . . . . . 1 . Recycler 1 | 1 . . . . . . . . Operator 2 | . 1 . . 1 . . . . Watcher 3 | . . 2 . 1 . . . . Swarmer 15 | . 1 8 6 . . . . . Cutter 1 | . . . . . . 1 . . Grunt 18 | . 5 . . 5 . . 8 . Duelist 1 | . . . . . . . 1 . Sentry 2 | . . 2 . . . . . . Specialist 1 | . . . . . . 1 . . Hunter 1 | . . . . 1 . . . . Programmer 1 | . . . . . . . 1 . Assembled 7 | . . . 7 . . . . . Best Kill Streak 8 | 1 2 8 7 3 1 1 4 . Combat Bots Only 7 | . 2 5 7 3 . 1 4 . Max Kills in Single Turn 3 | 1 2 3 2 1 1 1 2 . Gunslinging 1 | . . . 1 . . . . . Exploded 2 | . 2 2 2 1 . . 1 . Melee . | . . . . . . . . . Uniques/NPCs Destroyed . | . . . . . . . . . Combat | -11 -10 -9 -9 -8 -7 -7 -6 -5 -------- Run | Yrd Mat Mat Min Mat Fac DSF Fac Fac Hostile Shots Fired 398 | . 11 41 35 22 . 15 206 68 Missed 168 | . 3 20 11 8 . 4 98 24 Damage Taken 4214 | . 93 261 269 227 . 326 1851 1187 Core 1723 | . 15 15 59 40 . 1 592 1001 Absorbed by Shields 67 | . . . 42 25 . . . . Redirected to Shielding 117 | . 6 20 . . . . 46 45 Core Remaining (%) 82 | 100 94 . 81 92 . 99 30 . Volleys Fired 146 | 3 15 28 22 24 1 6 45 2 Largest 5 | 2 2 3 3 4 4 4 5 1 Hottest 210 | 40 50 105 115 115 151 151 210 63 Shots Fired 399 | 6 24 71 59 86 4 21 126 2 Gun 375 | 6 16 59 55 86 4 21 126 2 Cannon . | . . . . . . . . . Launcher 24 | . 8 12 4 . . . . . Special . | . . . . . . . . . Kinetic 301 | 6 16 56 33 72 2 10 106 . Thermal 54 | . . 3 22 . 1 6 20 2 Explosive 24 | . 8 12 4 . . . . . Electromagnetic 20 | . . . . 14 1 5 . . Robot Hit Streak 11 | 3 11 7 8 8 3 4 9 . Robot Miss Streak 8 | 1 4 6 8 4 1 4 8 2 Penetration Max . | . . . . . . . . . Secondary Targets 9 | . . . 4 2 . . 3 . Max Gunslinging Chain 2 | . . . 2 1 . . 1 . Shots Hit Robots 227 | 4 13 36 35 51 3 10 75 . Core Hits 162 | 2 17 19 32 24 1 5 54 8 Critical Kills . | . . . . . . . . . Critical Parts Destroyed 1 | . . 1 . . . . . . Critical Strikes 1 | . . 1 . . . . . . Destroy 1 | . . 1 . . . . . . Melee Attacks . | . . . . . . . . . Impact . | . . . . . . . . . Slashing . | . . . . . . . . . Piercing . | . . . . . . . . . Sneak Attacks . | . . . . . . . . . Combat Hostiles . | . . . . . . . . . Follow-up Attacks . | . . . . . . . . . Damage Inflicted 4561 | 47 372 894 564 658 53 186 1729 58 Guns 2994 | 47 130 364 297 518 53 186 1399 . Cannons . | . . . . . . . . . Explosions 1498 | . 242 530 267 140 . . 319 . Melee . | . . . . . . . . . Ramming 69 | . . . . . . . 11 58 Kinetic 2391 | 47 130 356 118 358 25 81 1276 . Thermal 858 | . . 8 179 140 14 75 442 . Explosive 1039 | . 242 530 267 . . . . . Electromagnetic 204 | . . . . 160 14 30 . . Impact . | . . . . . . . . . Slashing . | . . . . . . . . . Piercing . | . . . . . . . . . Highest Corruption 12 | . . . 12 1 . . 8 . Average Corruption 5 | . . . 11 1 . . 3 . Corruption Purged . | . . . . . . . . . Corruption Blocked . | . . . . . . . . . Effects 17 | . . . 10 1 . . 6 . Message Errors 5 | . . . 3 . . . 2 . Matter Fused 6 | . . . 3 1 . . 2 . Heat Flow Errors 2 | . . . 1 . . . 1 . Data Loss (minor) 2 | . . . 1 . . . 1 . Misdirections 1 | . . . 1 . . . . . Weapon Failures 1 | . . . 1 . . . . . Overload Shots . | . . . . . . . . . Overflow Damage 132 | . . 39 49 . . . 42 2 Projectiles . | . . . . . . . . . Explosions 130 | . . 39 49 . . . 42 . Melee 2 | . . . . . . . . 2 Knockbacks . | . . . . . . . . . Impact . | . . . . . . . . . Kinetic . | . . . . . . . . . Secondary . | . . . . . . . . . Self-Inflicted Damage 160 | . 6 10 24 . . . 94 26 Shots 4 | . 1 1 1 . . . 1 . Rammed 17 | . . . . . . . 1 16 Targets Rammed 17 | . . . . . . . 1 16 Kicked . | . . . . . . . . . Crushed . | . . . . . . . . . Highest Temperature 458 | . 5 90 412 206 104 119 458 . Average Temperature 102 | . 2 25 160 70 52 73 122 . Received Heat Transfer 758 | . 54 45 20 54 . . 558 27 Effects 2 | . . . . . . . 2 . Shutdowns 1 | . . . . . . . 1 . Damage (minor) 1 | . . . . . . . 1 . Siege Activations . | . . . . . . . . . Robots Corrupted . | . . . . . . . . . Combat Hostiles . | . . . . . . . . . Parts Fried . | . . . . . . . . . Impact Corruptions 1 | . . . . . . . . 1 Robots Melted . | . . . . . . . . . Combat Hostiles . | . . . . . . . . . Parts Melted . | . . . . . . . . . Heat Transferred 1116 | . . 10 225 150 37 185 509 . Parts Sabotaged . | . . . . . . . . . Parts Stolen . | . . . . . . . . . Parts Stripped . | . . . . . . . . . Power Chain Reactions 1 | . . . . 1 . . . . Alert | -11 -10 -9 -9 -8 -7 -7 -6 -5 ------- Run | Yrd Mat Mat Min Mat Fac DSF Fac Fac Peak Influence 400 | 5 259 400 278 299 88 76 337 284 Initial 164 | . 3 24 151 107 75 61 32 164 Average 178 | 3 166 211 170 193 82 62 204 229 Maximum Alert Level 2 | . 1 2 1 1 . . 1 1 Low Security (%) 57 | 100 48 58 79 52 100 100 50 20 Level 1 42 | . 51 40 20 47 . . 49 80 Level 2 . | . . 1 . . . . . . Level 3 . | . . . . . . . . . Level 4 . | . . . . . . . . . Level 5 . | . . . . . . . . . High Security . | . . . . . . . . . Max Security . | . . . . . . . . . Squads Dispatched 16 | . 1 1 . 5 . 1 6 2 Investigation 2 | . . . . 2 . . . . Extermination 2 | . . . . . . . 2 . Reinforcement 10 | . 1 1 . 2 . 1 3 2 Assault . | . . . . . . . . . Garrison 2 | . . . . 1 . . 1 . Intercept . | . . . . . . . . . Searches Triggered . | . . . . . . . . . Construction Impeded 2 | . . 1 . . . . 1 . Haulers Reinforced . | . . . . . . . . . Active Scanning Responses . | . . . . . . . . . Cargo Convoy Interrupts . | . . . . . . . . . Stealth | -11 -10 -9 -9 -8 -7 -7 -6 -5 --------- Run | Yrd Mat Mat Min Mat Fac DSF Fac Fac Distress Signals 2 | . . 1 . . . . . 1 Communications Jammed . | . . . . . . . . . Distress Signals . | . . . . . . . . . Times Spotted 102 | . 8 14 13 14 . 5 35 13 Peak Tracking Total 10 | . 2 8 4 3 . 4 9 10 Tactical Retreats 16 | . . 1 1 . . 1 11 2 Traps | -11 -10 -9 -9 -8 -7 -7 -6 -5 ------- Run | Yrd Mat Mat Min Mat Fac DSF Fac Fac Traps Triggered 3 | . . . . 1 . . 2 . Indirectly . | . . . . . . . . . Trap Hack Attempts . | . . . . . . . . . Triggered . | . . . . . . . . . Disarmed . | . . . . . . . . . Reprogrammed . | . . . . . . . . . Reused . | . . . . . . . . . Traps Extracted . | . . . . . . . . . Installed . | . . . . . . . . . Triggered . | . . . . . . . . . Machines | -11 -10 -9 -9 -8 -7 -7 -6 -5 ---------- Run | Yrd Mat Mat Min Mat Fac DSF Fac Fac Machines Disabled 10 | . 3 2 . . . 1 4 . Max in Single Turn 4 | . 1 1 . . . 1 4 . Machines Repaired . | . . . . . . . . . Machines Dismantled . | . . . . . . . . . Machines Sabotaged . | . . . . . . . . . Overloaded Fab Kills . | . . . . . . . . . Hacking | -11 -10 -9 -9 -8 -7 -7 -6 -5 --------- Run | Yrd Mat Mat Min Mat Fac DSF Fac Fac Machines Accessed 15 | . 4 1 . 3 2 . 4 1 Terminals 14 | . 4 1 . 3 2 . 3 1 Fabricators 1 | . . . . . . . 1 . Repair Stations . | . . . . . . . . . Recycling Units . | . . . . . . . . . Scanalyzers . | . . . . . . . . . Garrison Access . | . . . . . . . . . Total Hacks 31 | . 8 2 . 9 5 . 5 2 Successful 15 | . 2 . . 8 4 . 1 . Failed 16 | . 6 2 . 1 1 . 4 2 Catastrophic 2 | . 1 . . . . . . 1 Database Lockouts . | . . . . . . . . . Manual . | . . . . . . . . . Terminals 29 | . 8 2 . 9 5 . 3 2 Fabricators 2 | . . . . . . . 2 . Repair Stations . | . . . . . . . . . Recycling Units . | . . . . . . . . . Scanalyzers . | . . . . . . . . . Garrison Access . | . . . . . . . . . Terminal Hacks 15 | . 2 . . 8 4 . 1 . Record 6 | . . . . 4 2 . . . Prototype ID Bank 3 | . 1 . . 2 . . . . Open DSF 1 | . . . . . 1 . . . Unreport Threat 1 | . . . . 1 . . . . Locate Traps 1 | . . . . . 1 . . . Transport Status 1 | . 1 . . . . . . . Recall Extermination 1 | . . . . . . . 1 . Zone Layout 1 | . . . . 1 . . . . Fabricator Hacks . | . . . . . . . . . Repair Station Hacks . | . . . . . . . . . Recycling Unit Hacks . | . . . . . . . . . Scanalyzer . | . . . . . . . . . Garrison Access Hacks . | . . . . . . . . . Unauthorized Hacks . | . . . . . . . . . Terminals . | . . . . . . . . . Fabricators . | . . . . . . . . . Repair Stations . | . . . . . . . . . Recycling Units . | . . . . . . . . . Scanalyzers . | . . . . . . . . . Garrison Access . | . . . . . . . . . Data Cores Recovered 2 | . 1 . . 1 . . . . Used . | . . . . . . . . . Hacking Detections 10 | . 2 1 . 2 2 . 2 1 Full Trace Events 2 | . . . . 2 . . . . Feedback Events . | . . . . . . . . . Feedback Blocked . | . . . . . . . . . Robot Schematics Acquired . | . . . . . . . . . Robots Built . | . . . . . . . . . Authchips . | . . . . . . . . . Time . | . . . . . . . . . Total Robot Build Rating . | . . . . . . . . . Part Schematics Acquired . | . . . . . . . . . Parts Built . | . . . . . . . . . Authchips . | . . . . . . . . . Time . | . . . . . . . . . Total Part Build Rating . | . . . . . . . . . Parts Repaired . | . . . . . . . . . Time . | . . . . . . . . . Parts Recycled . | . . . . . . . . . Recycled Matter . | . . . . . . . . . Retrieved Matter . | . . . . . . . . . Retrieved Components . | . . . . . . . . . Parts Scanalyzed . | . . . . . . . . . Part Schematics Acquired . | . . . . . . . . . Parts Damaged . | . . . . . . . . . Bothacking | -11 -10 -9 -9 -8 -7 -7 -6 -5 ------------ Run | Yrd Mat Mat Min Mat Fac DSF Fac Fac Used RIF Installer . | . . . . . . . . . Robots Hacked . | . . . . . . . . . Non-combat . | . . . . . . . . . Combat . | . . . . . . . . . Robot Hacks Applied . | . . . . . . . . . Relay Couplers Released . | . . . . . . . . . Fabnet Peak Effective % . | . . . . . . . . . Robots Rewired 1 | . . . . . 1 . . . Allies Hacked . | . . . . . . . . . Hacks Repelled . | . . . . . . . . . Allies | -11 -10 -9 -9 -8 -7 -7 -6 -5 -------- Run | Yrd Mat Mat Min Mat Fac DSF Fac Fac Total Allies 2 | . . . 1 . 1 . . . Largest Group 1 | . . . 1 1 1 1 . . Highest-Rated Group 31 | . . . 31 31 30 30 . . Highest-Rated Ally 31 | . . . 31 31 30 30 . . Total Orders . | . . . . . . . . . Ally Attacks 25 | . . . . 20 . 5 . . Total Damage 424 | . . . . 253 . 171 . . Kills 1 | . . . . 1 . . . . Allies Corrupted . | . . . . . . . . . Allies Melted . | . . . . . . . . . Intel | -11 -10 -9 -9 -8 -7 -7 -6 -5 ------- Run | Yrd Mat Mat Min Mat Fac DSF Fac Fac Robot Analysis Total . | . . . . . . . . . Derelict Logs Recovered 1 | . . . 1 . . . . . Drone Launches . | . . . . . . . . . Drone Recoveries . | . . . . . . . . . Exploration | -11 -10 -9 -9 -8 -7 -7 -6 -5 ------------- Run | Yrd Mat Mat Min Mat Fac DSF Fac Fac Turns Passed 2661 | 129 449 251 302 303 51 87 944 145 Spaces Moved 3067 | 70 271 296 374 333 68 102 1318 235 Core 428 | 13 . . . 2 . . 285 128 Treads 275 | 57 217 . . . . . . 1 Legs 23 | . . . . . . . 23 . Wheels . | . . . . . . . . . Hover 2341 | . 54 296 374 331 68 102 1010 106 Flight . | . . . . . . . . . Fastest Speed 40 | 50 56 52 56 56 56 52 50 40 Average Speed 64 | 139 140 52 56 58 56 52 56 46 Slowest Speed 180 | 160 180 56 56 100 56 56 120 170 Overloaded Moves . | . . . . . . . . . Propulsion Burnouts . | . . . . . . . . . Robots Hopped . | . . . . . . . . . Cave-ins Triggered . | . . . . . . . . . Exploration Rate (%) 32 | 7 38 24 68 39 3 75 30 4 Regions Visited 8 Branch Regions 1 Pre-discovered Areas . | . . . . . . . . . Known Exits Taken 1 | . . . . . 1 . . . Unknown Exits Taken 6 | 1 1 1 1 1 . . 1 . Scrap Searched 1 | . . . 1 . . . . . Spaces Dug . | . . . . . . . . . Terrain Destroyed 198 | . 32 81 26 13 . . 46 . Melee . | . . . . . . . . . Projectile . | . . . . . . . . . AOE 198 | . 32 81 26 13 . . 46 . Terrain Rammed . | . . . . . . . . . Walls Destroyed . | . . . . . . . . . Machines Disabled . | . . . . . . . . . Actions | -11 -10 -9 -9 -8 -7 -7 -6 -5 --------- Run | Yrd Mat Mat Min Mat Fac DSF Fac Fac Total 3478 | 96 318 337 423 398 77 122 1439 268 Wait 91 | . . 5 13 21 3 . 37 12 Move 3059 | 69 270 295 373 332 67 101 1317 235 Hop . | . . . . . . . . . Pick Up 49 | 13 7 2 5 7 . 6 9 . Fast Attach 29 | 5 5 2 2 4 . 3 5 3 Attach 34 | 1 2 4 5 1 3 4 13 1 Detach 7 | . 1 1 1 . . 1 3 . Swap 12 | . 4 . 1 1 1 . 5 . Drop 33 | 5 14 . 1 8 . 1 4 . Fire 146 | 3 15 28 22 24 1 6 45 2 Melee . | . . . . . . . . . Ram 16 | . . . . . . . 1 15 Kick . | . . . . . . . . . Crush . | . . . . . . . . . Escape Stasis . | . . . . . . . . . Rewire 2 | . . . . . 2 . . . Trap . | . . . . . . . . . Miscellaneous . | . . . . . . . . . Route ------- -11/Scrapyard -10/Materials -9/Materials -9/Mines -8/Materials -7/Factory -7/DSF -6/Factory (discovered 2 exits: *Fac / [*Low]) -5/Factory History --------- Turn | Location | Event 9 | -11/Scrapyard | Discovered new exit (range 15) 130 | -11/Scrapyard | Entered Materials 305 | -10/Materials | Build established: Mutant 572 | -10/Materials | Discovered new exit (range 5) 579 | -10/Materials | Entered another Materials area 579 | -9/Materials | Evolved 2 slots: Propulsion x1, Weapon x1 601 | -9/Materials | Discovered new exit (range 15) 830 | -9/Materials | Entered Mines 831 | -9/Mines | YI-UF0 nonchalantly dropped a Grenade Launcher on the ground 861 | -9/Mines | Assembled infested the area 889 | -9/Mines | System corruption reached 10% 919 | -9/Mines | Destroyed 7 combat bots 919 | -9/Mines | Lost 5 parts (1n2u2w) 1066 | -9/Mines | Discovered new exit (range 15) 1109 | -9/Mines | Learned Materials terminal intel 1119 | -9/Mines | Received a Mining Laser from a helpful Derelict 1132 | -9/Mines | Entered Materials 1132 | -8/Materials | Accompanied by 1 ally 1132 | -8/Materials | Evolved 2 slots: Utility x1, Weapon x1 1133 | -8/Materials | Loaded intel: 12 terminal locations 1348 | -8/Materials | Garrison activated, responded to threat 1412 | -8/Materials | Discovered new exit (range 4) 1435 | -8/Materials | Entered Factory 1435 | -7/Factory | Evolved 2 slots: Power x1, Utility x1 1483 | -7/Factory | Identified exit to DSF 1486 | -7/Factory | Entered DSF 1486 | -7/DSF | Accompanied by 1 ally 1509 | -7/DSF | Build established: Gunner 1521 | -7/DSF | Additional patrols routed to DSF 1563 | -7/DSF | Discovered new exit (range 16) 1573 | -7/DSF | Lost 5 parts (1p1n1u2w) 1573 | -7/DSF | Entered Factory 1573 | -6/Factory | Evolved 2 slots: Utility x1, Weapon x1 1670 | -6/Factory | Garrison activated, responded to threat 1853 | -6/Factory | Lost 6 parts (1p1n4w) 2016 | -6/Factory | Discovered new exit (range 15) 2206 | -6/Factory | Build established: Hacker-Mutant 2332 | -6/Factory | Released all parts (8) 2447 | -6/Factory | Core integrity fell below 50% 2506 | -6/Factory | Discovered new exit (range 11) 2517 | -6/Factory | Entered another Factory area 2517 | -5/Factory | Evolved 2 slots: Propulsion x1, Utility x1 2624 | -5/Factory | Core integrity fell below 50% 2632 | -5/Factory | Build established: Mutant 2642 | -5/Factory | Core integrity fell below 20% 2646 | -5/Factory | Lost 3 parts (3u) 2662 | -5/Factory | Core destroyed Last Messages --------------- 02609_ Acquired Arm. Medium Treads. 02610_ Arm. Medium Treads severed. 02611_ Acquired Arm. Medium Treads. 02612_ ALERT: Suspicious intruders detected, dispatching Specialist reinforcements to area. 02613_ Arm. Medium Treads severed. 02614_ Slug penetrates C-35 Carver. 02615_ Penetrated by Slug. 02615_ Weight Redist. System destroyed. 02625_ R-10 Processor collects Arm. Medium Treads. 02628_ Penetrated by Slug. 02635_ Knocked back. 02648_ Slammed into K-01 Serf. 02649_ Slammed into W-25 Informer. 02650_ Slammed into C-35 Carver. 02660_ Destroyed Imp. Surge Thruster. 02660_ C-35 Carver system corrupted by crushing effect. 02661_ C-35 Carver system terminally corrupted. 02661_ Slammed into C-35 Carver. 02662_ Destabilizing: Core damaged (-20). Map ----- +----------------------------------------------------+ | ?????????????????????????????????????????????????? | | ?????????????????????????????????????????????????? | | ?????????????????????????????????????????????????? | | ?????????????????????????????????????????????????? | | ?????????????????????????????????????????????????? | | ?????????????????????????????????????????????????? | | ?????????????????????????????????????????????????? | | ?????????????????????????????????????????????????? | | ?????????????????????????????????????????????????? | | ?????????????????????????????????????????????????? | | ??????????????????????????????? ???????????????? | | ??????????????????????????????# ??????????????? | | ??????????????????????????????# ""? ??????????? | | ??????????????????????????????# "G ??????????? | | ??????????????????????????????+ "" ???????????? | | ??????????????????????????????# ???????????? | | ??????????????????????????????# ????????????? | | ??????????????????????????????# #????????????? | | ??????????????????????????????# #????????????? | | ??????????????????????????????# #????????????? | | ??????????????????????????????# #????????????? | | ??????????????????????????????# #????????????? | | ??????????????????????????????# #????????????? | | ??????????????????????????????# #??########### | | ????????????????############### #### | | ????????????????# x k xcc@kA + """" """" | | ????????????????#w################# #### """" """" | | ????????????????# #???????????????# #??# """" """" | | ????????????????# #???????????????# #??# """" """" | | ????????????????# #???????????????# #??# """" """" | | ????????????????# ############????# #??# """" """" | | ????????????????# / #????# #??# | | ????????????????# ## #????# #??# | | ????????????????# ## % #????# #??# | | ???????????????? ## #????# #??# | | ???????????????# ## #????# #??# | | ???????????????# ## #????# #??########### | | ???????????????? ## #????# #########????? | | ???????????????# ## #????# #????? | | ???????????????# ######## #????? | | ???????????????# #????? | | ???????????????# #????? | | ???????????????# #????? | | ????????????? + #????? | | ??????????? # #????? | | ??????????? # ######### #????? | | ????????????#??# "## ???# #????? | | ?????????????? ?# ??######+#######??? | | ?????????????# = ?# ?# ! #??? | | ????????????? ?# ?# "#??? | +----------------------------------------------------+ Best States ------------- Heat Dissipation 59 Energy Generation 18 Energy Capacity 325 Matter Stores 300 Matter Capacity 300 Sight Range 16 Terrain Scan Density 10 Additional Mass Support 6 Armor Coverage 225 Utility Shielding 66 Weapon Shielding 33 Weapon Cycling 15 Evasion (%) 57 Targeting Accuracy 11 Recoil Reduction 2 Energy Filtering 30 Offensive Hacking 10 Defensive Hacking 10 Item Schematics ----------------- None Robot Schematics ------------------ None Fabricated ------------ Nothing Alien Tech Used ----------------- None Achievements -------------- Everything Is Under Control I Survived The Infestation System Compromised Use The Force Challenges ------------ None Game ------ Seed ScanTrackerSplitter Manual? 0 Play Time 01:27:14 Cumulative 9.6 hours Start 2024.03.03 @ 09:42:39 End 2024.03.04 @ 23:56:14 Sessions 5 Manual Loads 0 Difficulty Rogue Special Mode None Game No. 3 Rogue 3 Adventurer 0 Explorer 0 Win Type - Total 0 Types 0/0/0/0/0/0/0/0/0 Lore% 5 Gallery% 12 Achievement% 14 Wizard Run 0 Options --------- Layout 0 ASCII 0 Keyboard 0 Movement Mouse Keybinds 0 Fullscreen 1 Font 24/Smallcaps Map View 76x50 Zoom Use 0% Tactical HUD 1 Map Filters NONE Filters NONE Steam 1 RUN: e51d1bee-316b-4653-98ca-d4b882bc8fbb